[Event "1st Chessable Sunway Formentera 2022"]
[Site "Formentera Punta Prima"]
[Date "2022.05.01"]
[Round "3"]
[White "Mouhamad, Joachim"]
[Black "Buivys, Martynas"]
[Result "1-0"]
[ECO "B31"]
[WhiteElo "2290"]
[BlackElo "1806"]
[Annotator "TA"]
[PlyCount "57"]
[EventDate "2022.05.05"]
[EventType "swiss"]
[EventCountry "ESP"]
[SourceTitle "playchess.com"]
[Source "ChessBase"]
[SourceQuality "1"]
[TimeControl "40/5400+30:1800+30"]

{[%evp 15,57,15,41,0,0,0,0,0,33,23,44,54,56,52,41,44,38,40,287,284,272,278,541,49,54,-80,47,43,289,282,1058,1081,1104,1144,1145,1131,1138,1133,1387,1551,1345,997,5877,468]} 1. e4 {[%emt 0:00:05]} c5 {[%emt 0:00:18]} 2. Nf3 {[%emt 0:00:10]} Nc6 {[%emt 0:00:06]} 3. Bb5 {[%emt 0:00:25]} g6 {[%emt 0:00:19]} 4. O-O {[%emt 0:01:25]} Bg7 {[%emt 0:00:08]} 5. c3 {[%emt 0:00:52]} e5 {[%emt 0:00:27]} 6. d4 {[%emt 0:01:12]} cxd4 {[%emt 0:01:44]} 7. cxd4 {[%emt 0:00:15]} exd4 {[%emt 0:00:07]} 8. Bf4 {[%emt 0:00:58]} a6 {[%emt 0:00:25]} 9. Qa4 {[%emt 0:17:16][%mdl 1024] White has compensation. B31: Sicilian: 2...Nc6 3 Bb5 g6.} Nge7 {[%emt 0:08:54]} 10. Bd6 {[%emt 0:01:48]} b6 {[%emt 0:40:44]} 11. Bc4 {[%emt 0:21:53] [#] The position is equal.} O-O $146 {[%emt 0:04:19]} (11... Bb7 $5 {[%cal Rb6b5]} 12. Ng5 O-O $11) ({Predecessor:} 11... Bb7 12. Ng5 O-O 13. Qb3 Qe8 14. Qg3 h6 15. Nf3 Na7 16. Nbd2 Nac8 17. Be5 d5 18. exd5 {1-0 (36) Kuybokarov,T (2549)-Daghli,A (2431) Mersin 2021}) 12. Qa3 {[%emt 0:04:26]} h6 {[%emt 0:14:09]} 13. Nbd2 {[%emt 0:09:44]} Bb7 {[%emt 0:00:48]} 14. Rac1 {[%emt 0:03:11]} b5 {[%emt 0:05:28]} 15. Bd5 {[%emt 0:03:58] Threatens to win with Bxe7.} b4 {[%emt 0:08:00]} 16. Qa4 {[%emt 0:03:46]} Re8 $2 {[%emt 0:02:50] [#]} (16... a5 $14) 17. Bxf7+ $1 $18 {[%emt 0:15:58][%mdl 576] Decoy} Kxf7 {[%emt 0:00:02]} 18. Qb3+ {[%emt 0:00:07]} Kf8 $2 {[%emt 0:05:14] [#]} (18... Nd5) 19. Nh4 $2 {[%emt 0:00:03]} (19. Ng5 $1 $18 {[%cal Rg5h7][%mdl 512]} hxg5 20. f4) 19... Bf6 $1 $14 {[%emt 0:02:02]} (19... Ne5 $2 20. Bc7 Qc8 21. Bxe5 $18) 20. Nxg6+ {[%emt 0:02:38]} Kg7 {[%emt 0:00:15]} 21. Nf4 $36 {[%emt 0:01:49][%mdl 2048] Nh5+ is the strong threat. White has good play. Really sharp!} Bg5 $2 {[%emt 0:03:59] [#]} (21... Rf8 $14) 22. Nh5+ $1 $18 {[%emt 0:00:55]} Kg6 $2 {[%emt 0:00:02] [#]} (22... Kh8 23. Qf7 Rg8) 23. f4 $1 {[%emt 0:00:23] Threatening mate with f5+. White is clearly winning.} Rf8 {[%emt 0:01:07]} 24. fxg5 {[%emt 0:00:28]} hxg5 {[%emt 0:00:27]} 25. Rxf8 {[%emt 0:02:07]} Qxf8 {[%emt 0:00:01] [#]} 26. Rf1 $1 {[%emt 0:00:19][%cal Bc1f1,Bf1f6,Bf6f7][%mdl 32]} Qg8 {[%emt 0:00:45]} (26... Kxh5 27. Rxf8) 27. Rf6+ {[%emt 0:00:23]} Kh7 {[%emt 0:00:46]} 28. Rf7+ {[%emt 0:00:55]} Kh6 {[%emt 0:00:29]} 29. Nf4 {[%emt 0:05:39] Weighted Error Value: White=0.31/Black=0.77} 1-0

[Event "1st Chessable Sunway Formentera 2022"]
[Site "Formentera Punta Prima"]
[Date "2022.05.01"]
[Round "3"]
[White "Dukic, Zachary"]
[Black "Eugene, Floryan"]
[Result "0-1"]
[ECO "C84"]
[WhiteElo "2243"]
[BlackElo "2370"]
[Annotator "TA"]
[PlyCount "130"]
[EventDate "2022.05.05"]
[EventType "swiss"]
[EventCountry "ESP"]
[SourceTitle "playchess.com"]
[Source "ChessBase"]
[SourceQuality "1"]
[TimeControl "40/5400+30:1800+30"]

{[%evp 13,130,13,20,4,0,0,6,0,0,0,0,0,12,-12,-13,-17,-17,-20,-18,-17,-15,-16,0,0,0,-19,-20,-24,-21,-21,0,0,0,-69,-47,-74,-18,-43,-25,-124,-117,-117,-89,-95,-58,-105,-99,-121,-108,-114,-111,-129,-129,-135,-135,-130,-129,-129,-127,-131,-129,-126,-118,-143,-130,-133,-133,-131,-131,-140,-146,-144,-139,-133,-121,-118,-116,-118,-112,-108,-102,-106,-83,-102,-101,-91,-46,-127,-89,-155,-113,-105,0,-66,-66,-66,-66,-54,-9,-56,-21,-31,-19,-61,-67,-66,-67,-101,-101,-101,-101,-102,-102,-182,-182,-29973,-29974,-29974,-29975]} 1. e4 {[%emt 1:30:47]} e5 {[%emt 1:30:45]} 2. Nf3 {[%emt 0:00:31]} Nc6 {[%emt 0:00:37]} 3. Bb5 {[%emt 0:00:18][%cal Bf1b5,Bb5a4,Ba4b3][%mdl 32]} a6 {[%emt 0:00:00]} 4. Ba4 {[%emt 0:00:47]} Nf6 {[%emt 0:00:45]} 5. O-O {[%emt 0:00:25]} Be7 {[%emt 0:00:44]} 6. d3 {[%emt 0:00:33]} b5 {[%emt 0:00:00]} 7. Bb3 {[%emt 0:00:33]} d6 {[%emt 0:00:14]} 8. a3 {[%emt 0:00:06] C84: Closed Ruy Lopez: Unusual White 6th moves.} Na5 {[%emt 0:00:23]} 9. Ba2 {[%emt 0:00:48]} c5 {[%emt 0:01:22]} 10. Nc3 {[%emt 0:00:00] The position is equal.} Be6 {[%emt 0:00:00]} 11. Bxe6 {[%emt 0:00:00]} fxe6 {[%emt 0:01:03]} 12. b4 {[%emt 0:01:32]} Nc6 {[%emt 0:00:00]} 13. Bd2 {[%emt 0:00:00]} O-O {[%emt 0:00:00] [#]} 14. Ne2 $146 {[%emt 0:00:00]} ({Predecessor:} 14. bxc5 d5 15. Bg5 Bxc5 16. Qb1 Nd4 17. Nd2 Rc8 18. exd5 exd5 19. Qa2 Ba7 20. Bxf6 gxf6 21. Qxd5+ {0-1 (44) Shyam,S (2530)-Ben Artzi,I (2399) Zalakaros 2016}) 14... d5 {[%emt 0:00:00]} 15. exd5 {[%emt 0:00:00]} exd5 {[%emt 0:00:00]} 16. Ng3 {[%emt 0:01:36]} Nd7 {[%emt 0:00:12][%cal Rc5b4]} 17. c3 {[%emt 0:00:22]} Qc7 {[%emt 0:00:00]} 18. Be3 {[%emt 0:00:00]} Rad8 {[%emt 0:00:00]} 19. Qb3 {[%emt 0:00:35]} c4 {[%emt 0:02:31]} 20. dxc4 {[%emt 0:01:20]} bxc4 {[%emt 0:00:19]} 21. Qc2 {[%emt 0:00:00]} Bf6 {[%emt 0:00:00]} (21... e4 $5 {[%cal Re4f3]} 22. Nd4 (22. Nxe4 $2 dxe4 23. Qxe4 Nce5 $19) 22... Nxd4 23. Bxd4 Ne5 $15) 22. Rad1 {[%emt 0:00:00]} e4 {[%emt 0:01:47]} 23. Nd4 {[%emt 0:01:24]} (23. Nxe4 dxe4 24. Qxe4 Nde5 25. Rxd8 Qxd8 26. Nxe5 Nxe5 $17) (23. Ng5 $11) 23... Bxd4 {[%emt 0:00:44]} 24. Bxd4 {[%emt 0:00:24]} Nde5 {[%emt 0:00:27]} ({Black should try} 24... Nxd4 $17 25. Rxd4 Ne5) 25. Bc5 {[%emt 0:00:00]} Rf7 {[%emt 0:00:00]} 26. Nxe4 {[%emt 0:00:00]} dxe4 $17 {[%emt 0:00:00]} 27. Qxe4 {[%emt 0:01:52]} Nd3 {[%emt 0:00:00] And now ...Nce5 would win.} 28. Qxc4 {[%emt 0:00:00]} Nce5 {[%emt 0:02:29] 0x0.002ddf93d7dbdp-1022s more active pieces.} 29. Qe6 {[%emt 0:00:00]} (29. Qe4 $15) 29... Qd7 {[%emt 0:00:00]} ({Reject} 29... Nxc5 $6 30. Rxd8+ Qxd8 31. Qxe5 $15 (31. bxc5 Qe7 $15)) 30. Qxd7 {[%emt 0:00:00]} Rfxd7 {[%emt 0:00:00]} 31. Bd4 {[%emt 0:00:12]} Nf4 {[%emt 0:00:37]} 32. Rde1 {[%emt 0:00:00] [#] Inhibits Ne2+.} Nc4 {[%emt 0:01:03]} 33. Re4 {[%emt 0:01:30]} Nd5 {[%emt 0:00:51] ...Nd2 is the strong threat. Pair of Knights!} 34. Ra1 {[%emt 0:00:00]} Nd2 {[%emt 0:00:00]} 35. Re6 {[%emt 0:02:02]} Nb3 {[%emt 0:00:21]} 36. Rae1 {[%emt 0:00:48]} Nxd4 {[%emt 0:00:46]} 37. cxd4 {[%emt 0:00:31]} Rd6 {[%emt 0:00:43]} 38. R6e5 {[%emt 0:00:00]} Nc3 {[%emt 0:00:18]} 39. Ra5 {[%emt 0:00:15]} Nb5 {[%emt 0:00:25]} 40. d5 {[%emt 0:00:00]} Nc7 {[%emt 0:00:23]} ({Inferior is} 40... Rxd5 41. Rxa6 Rd1 42. Kf1 $17) 41. g3 {[%emt 0:20:52]} Rxd5 {[%emt 0:25:43]} 42. Rxd5 {[%emt 0:07:16]} Rxd5 {[%emt 0:05:17][%mdl 4096] Endgame KRN-KR} 43. Rc1 {[%emt 0:03:13]} Nb5 {[%emt 0:00:00]} 44. a4 {[%emt 0:00:00]} Nd4 {[%emt 0:01:34] Threatens to win with ...Ne2+.} 45. Kg2 {[%emt 0:01:35]} Rd8 {[%emt 0:00:00]} 46. h4 {[%emt 0:00:00]} Kf8 {[%emt 0:00:00]} 47. Rc7 {[%emt 0:01:06]} Rd6 {[%emt 0:00:00]} 48. h5 {[%emt 0:00:00]} h6 {[%emt 0:01:33]} 49. Rb7 {[%emt 0:00:00]} Ne6 {[%emt 0:00:00]} 50. Kf3 {[%emt 0:01:33]} (50. a5 $1 $15) 50... Nd8 {[%emt 0:00:00]} 51. Rc7 {[%emt 0:00:00]} (51. Rb8 $142) 51... Rd4 {[%emt 0:01:36]} 52. Ra7 {[%emt 0:01:36]} Rd6 {[%emt 0:00:00]} ({Better is} 52... Rxb4 $17 53. Rxa6 Ke7) 53. Ke4 {[%emt 0:00:09]} (53. Rc7 $1 $11) 53... Rb6 $15 {[%emt 0:01:20]} 54. Kd5 {[%emt 0:00:00]} Rxb4 {[%emt 0:00:00]} 55. Rxa6 {[%emt 0:01:25]} Ke7 {[%emt 0:01:02]} 56. Ke5 {[%emt 0:00:00]} (56. f4 $11 {is more appropriate.}) 56... Rb7 {[%emt 0:00:00]} 57. g4 {[%emt 0:00:21]} Rc7 {[%emt 0:00:36]} 58. f3 {[%emt 0:00:21]} Rc5+ {[%emt 0:00:25]} 59. Ke4 {[%emt 0:00:52]} Ne6 {[%emt 0:00:00]} 60. a5 {[%emt 0:00:12]} Nc7 {[%emt 0:00:30]} 61. Ra7 {[%emt 0:00:46]} Ke6 {[%emt 0:01:20]} 62. Kd4 {[%emt 0:00:46]} Kd6 {[%emt 0:00:13] ( -> ...Nb5+)} 63. Rb7 {[%emt 0:00:02]} (63. Kd3 $17) 63... Ne6+ $19 {[%emt 0:00:38]} 64. Ke4 $2 {[%emt 0:00:54] [#]} (64. Ke3 $19) 64... Re5+ {[%emt 0:00:52]} 65. Kd3 {[%emt 0:00:41]} Nc5+ {[%emt 0:00:30] Weighted Error Value: White=0.31/Black=0.12 (very precise)} 0-1

[Event "1st Chessable Sunway Formentera 2022"]
[Site "Formentera Punta Prima"]
[Date "2022.05.01"]
[Round "3"]
[White "Bernard, Jacques"]
[Black "Chiku-Ratte, Olivier-Kenta"]
[Result "1/2-1/2"]
[ECO "B44"]
[WhiteElo "2122"]
[BlackElo "2358"]
[Annotator "TA"]
[PlyCount "148"]
[EventDate "2022.05.05"]
[EventType "swiss"]
[EventCountry "ESP"]
[SourceTitle "playchess.com"]
[Source "ChessBase"]
[SourceQuality "1"]
[TimeControl "40/5400+30:1800+30"]

{[%evp 22,148,27,0,25,0,0,-2,29,31,29,23,36,34,31,43,97,88,94,0,0,-47,-41,-39,-25,-80,0,0,0,0,0,-24,-22,-47,-52,-52,-65,-45,-41,-38,-16,-16,0,-72,-45,-55,-36,-67,-25,-220,-230,-273,-272,-186,-112,-112,-89,-87,-35,-35,-35,-35,-36,-36,-36,-43,-40,-121,-121,-121,-121,-121,-87,-89,-89,-124,-89,-125,-26,-27,-27,-79,-18,-12,-12,-12,-11,-21,0,0,0,-31,-35,-34,-48,-85,-85,-222,-222,-222,-222,-266,-266,-266,-222,-222,-222,-222,-222,-222,-222,-222,-222,-222,-222,-222,-222,-222,-222,-222,-222,-222,-222,-222,-222,-222,-222,-222,-222]} 1. e4 {[%emt 0:00:11]} c5 {[%emt 0:00:25]} 2. Nf3 {[%emt 0:00:15][%cal Bg1f3,Bf3d4,Bd4b5][%mdl 32]} e6 {[%emt 0:00:19]} 3. d4 {[%emt 0:02:31]} cxd4 {[%emt 0:00:05]} 4. Nxd4 {[%emt 0:00:06]} Nc6 {[%emt 0:00:09]} 5. Nb5 {[%emt 0:04:09]} d6 {[%emt 0:01:12]} 6. c4 {[%emt 0:00:07]} Nf6 {[%emt 0:01:50]} 7. N1c3 {[%emt 0:01:19]} a6 {[%emt 0:03:33]} 8. Na3 {[%emt 0:01:22]} Be7 {[%emt 0:00:42]} 9. Be2 {[%emt 0:00:16]} O-O {[%emt 0:00:04]} 10. O-O {[%emt 0:00:08]} b6 {[%emt 0:05:24]} 11. Be3 {[%emt 0:01:57]} Bb7 {[%emt 0:03:01]} 12. f4 {[%emt 0:12:33] [#]} Na5 $146 {[%emt 0:09:20] B44: Sicilian: Taimanov: 5 Nb5.} ({Predecessor:} 12... d5 13. exd5 exd5 14. Nxd5 Nxd5 15. cxd5 Nb4 16. d6 Bxd6 17. Nc4 Bc5 18. Bxc5 bxc5 19. a3 Nc6 20. Bf3 Rb8 21. Qxd8 Rfxd8 22. Bxc6 Bxc6 23. Rfd1 {½-½ (23) Nemeth,M (2487)-Krause,B (2455) Boeblingen 2017}) 13. b4 {[%emt 0:24:14]} Nc6 {[%emt 0:07:09][%cal Ba5c6,Bc6b8,Bb8d7,Bd7b6][%mdl 32]} 14. Nc2 {[%emt 0:05:21]} Rc8 {[%emt 0:13:34][%cal Od6d5] The position is equal.} 15. a3 {[%emt 0:03:54]} Nb8 {[%emt 0:08:29]} 16. Qd3 {[%emt 0:10:24]} b5 {[%emt 0:05:27]} 17. cxb5 {[%emt 0:01:46][%cal Bc4b5,Bb5b6][%mdl 32]} Qc7 $1 {[%emt 0:02:43]} 18. Bd4 {[%emt 0:11:25]} (18. bxa6 Bxa6 19. b5 Qxc3 $15) 18... e5 {[%emt 0:18:10] [#]} ({Black should try} 18... axb5 $14 19. Rac1 (19. Qxb5 $2 Ba6 $19) 19... Nbd7) 19. b6 $1 $16 {[%emt 0:00:22]} Qd8 {[%emt 0:03:05]} (19... Qd7 20. fxe5) 20. Be3 {[%emt 0:06:44] 0x0.002c8bc5e016dp-1022s more active pieces. The black rooks are badly placed.} (20. fxe5 $16 dxe5 21. Bxe5) 20... Nbd7 $11 {[%emt 0:01:33]} 21. Rad1 {[%emt 0:02:57]} (21. Kh1 $11 {might be stronger.}) 21... Nxb6 $15 {[%emt 0:05:56]} 22. fxe5 {[%emt 0:04:22]} dxe5 {[%emt 0:00:01]} 23. Qxd8 {[%emt 0:01:08]} (23. Bg5 $1 $11) 23... Bxd8 {[%emt 0:04:23]} (23... Rfxd8 $17 24. Rxd8+ Bxd8) 24. Bc5 $11 {[%emt 0:00:12]} Re8 {[%emt 0:00:26]} 25. Ne3 {[%emt 0:00:40] And now Nf5 would win.} Be7 {[%emt 0:02:35]} 26. Bxb6 {[%emt 0:03:24]} Rxc3 {[%emt 0:00:08]} 27. Nf5 {[%emt 0:00:43]} Bf8 {[%emt 0:01:15]} ({Of course not} 27... Bxe4 28. Nxe7+ Rxe7 29. Rd8+ Re8 30. Rfd1 $14) 28. Nh6+ {[%emt 0:00:39]} gxh6 {[%emt 0:00:02]} 29. Rxf6 {[%emt 0:00:01]} Bxe4 {[%emt 0:00:31]} 30. Bxa6 {[%emt 0:00:47]} Rxa3 {[%emt 0:01:23]} 31. Bc4 {[%emt 0:00:16]} Bg6 {[%emt 0:00:40] Strongly threatening ...Rc8.} 32. Rd7 {[%emt 0:00:36]} (32. b5 $11) 32... Ra1+ {[%emt 0:00:32]} (32... Kg7 $5 {[%cal Rg7f6]} 33. Rf1 Bxb4 34. Bxf7 Re7 35. Rxe7 Bxe7 $17) 33. Kf2 {[%emt 0:00:11][%cal Of6g6]} Kg7 $36 {[%emt 0:01:04][%mdl 2048] Black is pushing.} ({Don't do} 33... Bxb4 34. Rfxf7 Bxf7 35. Bxf7+ Kf8 36. Bxe8 Kxe8 37. Rxh7 $14) 34. Rf3 {[%emt 0:01:01]} Re7 {[%emt 0:00:16]} 35. Rd8 {[%emt 0:00:05]} (35. Bc7 $11 Rxd7 36. Bxe5+ Kg8 37. Bxa1) 35... Rb7 $1 $19 {[%emt 0:00:21][%csl LRb4,LRb6]} 36. Bc5 {[%emt 0:01:23]} Bxc5+ {[%emt 0:00:24]} 37. bxc5 {[%emt 0:00:03]} Rc7 {[%emt 0:01:36]} (37... Rc1 $19 38. Be2 Rb2) 38. Bd5 $17 {[%emt 0:00:55]} Rd1 {[%emt 0:01:00]} 39. Rc3 {[%emt 0:00:43]} Kf6 {[%emt 0:00:22]} (39... Rd2+ $17 40. Ke3 Rd4) 40. Rd6+ $15 {[%emt 0:00:00]} Ke7 {[%emt 0:00:00][%cal Oc7c5]} 41. Bxf7 $1 {[%emt 0:01:51] [#]} Rxc5 $1 {[%emt 0:09:06]} 42. Rxd1 {[%emt 0:03:12]} Rxc3 {[%emt 0:00:20][%mdl 4096] Endgame KRB-KRB} 43. Bd5 {[%emt 0:07:45]} Kf6 {[%emt 0:00:25]} 44. Rd2 {[%emt 0:06:31] [#]} ({White should play} 44. Re1 $15) 44... e4 $1 $17 {[%emt 0:01:10] White must now prevent ...e3+.} 45. Rb2 {[%emt 0:01:20]} Ke5 {[%emt 0:00:20]} 46. Bb7 {[%emt 0:00:44]} Bf7 {[%emt 0:04:20]} 47. Re2 {[%emt 0:06:33] [#]} Rc4 $1 {[%emt 0:01:08]} 48. Rd2 {[%emt 0:00:58]} Be6 {[%emt 0:01:50] Against Rd7} 49. Rb2 {[%emt 0:01:16]} Rc3 {[%emt 0:02:29]} ({Better is} 49... h5 $17 50. Rd2 Rb4) 50. Re2 $11 {[%emt 0:01:00]} Bf5 {[%emt 0:01:06]} 51. Rb2 {[%emt 0:00:56]} (51. Ra2 $1 $11 {remains equal.}) 51... h5 {[%emt 0:00:47]} (51... Bg6 $17 52. Ba6 h5 53. Rb5+ Kd6 54. Rb6+ Ke5 55. Rb5+ Kd4 56. Rb4+ Ke5 57. Rb5+) 52. Rb5+ {[%emt 0:02:31]} Kf6 {[%emt 0:01:53] ...e3+ is the strong threat.} 53. Rb6+ $1 {[%emt 0:01:22]} Kg5 {[%emt 0:01:22]} 54. Rb5 {[%emt 0:00:25]} Kg6 {[%emt 0:07:27]} 55. Rb6+ {[%emt 0:00:15]} Kg7 {[%emt 0:00:01]} 56. Rb4 {[%emt 0:00:16]} e3+ {[%emt 0:00:01]} 57. Ke2 {[%emt 0:00:25]} Be6 {[%emt 0:00:17] Hoping for ...Bc4+.} 58. Bf3 {[%emt 0:01:25]} Bc4+ {[%emt 0:00:17] Black converts the advantage convincingly.} 59. Rxc4 {[%emt 0:00:43]} Rxc4 $19 {[%emt 0:00:01]} 60. Kxe3 $17 {[%emt 0:00:01] KR-KB} h4 {[%emt 0:01:25]} 61. h3 {[%emt 0:00:58]} Kf6 {[%emt 0:00:42]} 62. Kf2 {[%emt 0:00:14]} Ke5 {[%emt 0:00:38]} 63. Kg1 {[%emt 0:00:42] Black is clearly better.} Rc3 {[%emt 0:02:23]} 64. Kh2 {[%emt 0:00:05]} Kf4 {[%emt 0:01:09]} 65. Bb7 {[%emt 0:00:17]} Rb3 {[%emt 0:00:22]} 66. Bc6 {[%emt 0:00:09]} Rb6 {[%emt 0:01:14]} 67. Bf3 {[%emt 0:00:08]} Ke3 {[%emt 0:00:13]} 68. Bd5 {[%emt 0:00:08]} Rd6 {[%emt 0:00:08]} 69. Bf3 {[%emt 0:00:06]} Kf2 {[%emt 0:00:27]} 70. Be4 {[%emt 0:00:08]} h6 {[%emt 0:00:28]} 71. Bf3 {[%emt 0:00:06]} Kf1 {[%emt 0:00:46]} 72. Be4 {[%emt 0:00:06]} Re6 {[%emt 0:00:55]} 73. Bf3 {[%emt 0:00:07]} Kf2 {[%emt 0:01:27]} 74. Bd5 {[%emt 0:00:10]} Rf6 {[%emt 0:00:41] Weighted Error Value: White=0.26 (precise) /Black=0.20 (precise)} 1/2-1/2

[Event "1st Chessable Sunway Formentera 2022"]
[Site "Formentera Punta Prima"]
[Date "2022.05.01"]
[Round "3"]
[White "Ribeiro, Jose"]
[Black "Bergez, Luc"]
[Result "0-1"]
[ECO "A45"]
[WhiteElo "2076"]
[BlackElo "2331"]
[Annotator "TA"]
[PlyCount "68"]
[EventDate "2022.05.05"]
[EventType "swiss"]
[EventCountry "ESP"]
[SourceTitle "playchess.com"]
[Source "ChessBase"]
[SourceQuality "1"]
[TimeControl "40/5400+30:1800+30"]

{[%evp 9,68,0,8,0,0,-30,-31,-20,-29,-20,-22,-20,-18,-12,-15,-37,0,-14,-19,-43,-7,-13,0,0,0,-12,0,-6,0,0,0,0,0,0,0,0,0,0,0,-9,0,0,0,-6,-2,-113,-104,-103,-98,-106,-118,-106,-104,-110,-36,-130,-153,-434,-434,-426,-426]} 1. d4 {[%emt 0:00:02]} Nf6 {[%emt 0:00:11]} 2. Bg5 {[%emt 0:00:40]} c5 {[%emt 0:00:34]} 3. d5 {[%emt 0:03:42]} Qb6 {[%emt 0:00:33]} 4. Nc3 {[%emt 0:03:11]} Qxb2 {[%emt 0:01:23]} 5. Bd2 {[%emt 0:03:29]} Qb6 {[%emt 0:00:15]} 6. e4 {[%emt 0:00:44] [#] Hoping for e5. A45: Trompowsky Attack.} d6 {[%emt 0:00:40]} 7. h3 {[%emt 0:04:31]} g6 {[%emt 0:05:27]} 8. Nf3 {[%emt 0:00:09] Black is slightly better.} Bg7 {[%emt 0:01:31] [#]} 9. Rb1 $146 {[%emt 0:01:18]} ({Predecessor:} 9. Bc4 O-O 10. O-O Qd8 11. Rb1 b6 12. Qe2 e5 13. dxe6 Bxe6 14. Rbd1 Nc6 15. Bg5 {½-½ (51) Levitina,I (2400)-Bojkovic,N (2330) Belgrade 1992}) 9... Qd8 {[%emt 0:00:43]} 10. Bb5+ {[%emt 0:01:30]} Nbd7 {[%emt 0:03:59]} 11. a4 {[%emt 0:07:00]} ({Don't play} 11. e5 dxe5 12. Nxe5 O-O 13. Nxd7 Nxd7 $17) 11... O-O {[%emt 0:00:26]} 12. Qe2 {[%emt 0:00:44]} Ne5 {[%emt 0:03:38]} 13. Nxe5 {[%emt 0:03:09]} dxe5 {[%emt 0:00:09]} 14. Qe3 {[%emt 0:00:05]} b6 {[%emt 0:01:14]} 15. O-O {[%emt 0:00:10]} Ne8 {[%emt 0:03:22]} 16. Bxe8 {[%emt 0:04:29]} Rxe8 {[%emt 0:02:27]} 17. Rfd1 {[%emt 0:00:07]} e6 {[%emt 0:16:45]} 18. a5 {[%emt 0:04:31]} Bb7 {[%emt 0:03:27]} 19. Be1 {[%emt 0:07:52] Strongly threatening axb6.} exd5 {[%emt 0:02:55]} 20. Nxd5 {[%emt 0:01:01]} Bxd5 {[%emt 0:01:46]} 21. c4 {[%emt 0:01:14][%mdl 64] [#] Pin} Qc7 {[%emt 0:04:15]} 22. Rxd5 {[%emt 0:01:35]} Red8 {[%emt 0:00:47]} 23. Rb5 {[%emt 0:10:09]} Bf8 {[%emt 0:07:13]} 24. Qb3 {[%emt 0:01:03]} Rxd5 {[%emt 0:08:04]} 25. exd5 {[%emt 0:00:08]} e4 {[%emt 0:00:34]} 26. Qb2 {[%emt 0:06:46]} Qf4 {[%emt 0:15:03]} 27. Bd2 {[%emt 0:00:48] Inhibits e3.} ({But not} 27. axb6 axb6 28. Rxb6 e3 $15) (27. Qa2 $11 {remains equal.}) 27... e3 $1 $17 {[%emt 0:00:16]} 28. Bxe3 {[%emt 0:03:03]} Qxc4 {[%emt 0:00:34]} 29. axb6 {[%emt 0:00:42]} axb6 {[%emt 0:00:35]} 30. Rxb6 {[%emt 0:02:22]} Qxd5 {[%emt 0:00:07]} 31. Bf4 {[%emt 0:06:47] Prevents Bd6.} g5 {[%emt 0:04:44]} (31... Rc8 $17 32. Rb8 Rxb8 33. Qxb8 c4) 32. Be5 {[%emt 0:02:03]} (32. Qd2 $1 $15 Qxd2 33. Bxd2) 32... Re8 {[%emt 0:03:44]} 33. Bc3 {[%emt 0:02:52]} (33. f4 $17) 33... Qd1+ $19 {[%emt 0:00:51]} 34. Kh2 {[%emt 0:00:10]} Re2 {[%emt 0:00:19] Against Qd2.  Weighted Error Value: White=0.27 (precise) /Black=0.07 (flawless)} 0-1